[Event "MČR v bleskovém šachu družstev 2019"]
[Site "Teplice, Czech Republic"]
[Date "2019.09.14"]
[Round "11.9"]
[White "Vojta, Tomas"]
[Black "Jirovsky, Milos"]
[Result "1/2-1/2"]
[TimeControl "3 mim. + 2 s"]
[WhiteTitle "FM"]
[BlackTitle "GM"]
[WhiteFideId "308781"]
[BlackFideId "303224"]
[WhiteElo "2353"]
[BlackElo "2499"]

1. e4 {[%emt 00:02:40]} d5 2. exd5 {[%emt 00:00:01]} Qxd5 3. Nc3 {[%emt
00:00:02]} Qd6 4. d4 {[%emt 00:00:01]} Nf6 5. Nf3 {[%emt 00:00:01]} c6 6. g3
{[%emt 00:00:04]} Bg4 {[%emt 00:00:01]} 7. Bg2 e6 {[%emt 00:00:01]} 8. O-O
{[%emt 00:00:02]} Qc7 {[%emt 00:00:02]} 9. h3 {[%emt 00:00:03]} Bh5 {[%emt
00:00:05]} 10. g4 {[%emt 00:00:01]} Bg6 11. Ne5 {[%emt 00:00:01]} Bd6 {[%emt
00:00:03]} 12. f4 {[%emt 00:00:06]} Nbd7 {[%emt 00:00:02]} 13. Qe2 {[%emt
00:00:11]} O-O {[%emt 00:00:08]} 14. Be3 {[%emt 00:00:05]} Rfe8 {[%emt
00:00:10]} 15. Rad1 {[%emt 00:00:08]} Rad8 {[%emt 00:00:01]} 16. Qf2 {[%emt
00:00:07]} a6 {[%emt 00:00:18]} 17. Qh4 {[%emt 00:00:13]} Be7 {[%emt 00:00:07]}
18. Qg3 {[%emt 00:00:05]} c5 {[%emt 00:00:32]} 19. Nxg6 {[%emt 00:00:05]} hxg6
{[%emt 00:00:01]} 20. d5 {[%emt 00:00:11]} exd5 {[%emt 00:00:08]} 21. Nxd5
{[%emt 00:00:01]} Nxd5 {[%emt 00:00:03]} 22. Rxd5 {[%emt 00:00:02]} Nf6 {[%emt
00:00:10]} 23. Rdd1 {[%emt 00:00:04]} c4 {[%emt 00:00:12]} 24. Qf2 {[%emt
00:00:05]} Nd7 {[%emt 00:00:14]} 25. f5 {[%emt 00:00:08]} gxf5 {[%emt
00:00:04]} 26. Qxf5 {[%emt 00:00:04]} Bf6 {[%emt 00:00:03]} 27. Bd4 {[%emt
00:00:18]} Bxd4+ {[%emt 00:00:16]} 28. Rxd4 {[%emt 00:00:01]} Ne5 {[%emt
00:00:03]} 29. Bd5 {[%emt 00:00:15]} Re7 {[%emt 00:00:20]} 30. Rfd1 {[%emt
00:00:19]} Qb6 {[%emt 00:00:24]} 31. Qf2 {[%emt 00:00:09]} Rde8 {[%emt
00:00:04]} 32. b3 {[%emt 00:00:19]} cxb3 {[%emt 00:00:01]} 33. axb3 {[%emt
00:00:03]} g6 {[%emt 00:00:02]} 34. Rf1 {[%emt 00:00:08]} Kg7 {[%emt 00:00:04]}
35. Rf4 {[%emt 00:00:09]} Qxf2+ {[%emt 00:00:02]} 36. R4xf2 {[%emt 00:00:03]}
1/2-1/2

[Event "MČR v bleskovém šachu družstev 2019"]
[Site "Teplice, Czech Republic"]
[Date "2019.09.14"]
[Round "11.10"]
[White "Sokolov, Alexander"]
[Black "Zeman, Matyas"]
[Result "1/2-1/2"]
[TimeControl "3 mim. + 2 s"]
[WhiteTitle "FM"]
[WhiteFideId "4119177"]
[BlackFideId "364398"]
[WhiteElo "2417"]
[BlackElo "2094"]

1. e4 {[%clk 00:03:02]} {[%emt 00:00:02]} e6 {[%clk 00:03:03]} {[%emt
00:00:02]} 2. d4 {[%clk 00:03:03]} {[%emt 00:00:01]} d5 {[%clk 00:03:04]} 3.
Nd2 {[%clk 00:03:05]} a6 {[%clk 00:03:05]} {[%emt 00:00:02]} 4. Ngf3 {[%clk
00:03:06]} {[%emt 00:00:01]} c5 {[%clk 00:03:06]} 5. exd5 {[%clk 00:03:07]}
{[%emt 00:00:02]} exd5 {[%clk 00:03:07]} 6. Be2 {[%clk 00:03:05]} {[%emt
00:00:04]} Nf6 {[%clk 00:03:07]} {[%emt 00:00:02]} 7. O-O {[%clk 00:03:06]}
{[%emt 00:00:01]} Be7 {[%clk 00:02:57]} {[%emt 00:00:12]} 8. dxc5 {[%clk
00:03:07]} {[%emt 00:00:01]} Bxc5 {[%clk 00:02:57]} {[%emt 00:00:02]} 9. Nb3
{[%clk 00:03:08]} {[%emt 00:00:01]} Bb6 {[%clk 00:02:58]} 10. Bg5 {[%clk
00:03:01]} {[%emt 00:00:09]} O-O {[%clk 00:02:53]} {[%emt 00:00:07]} 11. c3
{[%clk 00:02:59]} {[%emt 00:00:04]} Nc6 {[%clk 00:02:43]} {[%emt 00:00:12]} 12.
Nfd4 {[%clk 00:02:48]} {[%emt 00:00:13]} h6 {[%clk 00:02:41]} {[%emt 00:00:04]}
13. Bh4 {[%clk 00:02:47]} {[%emt 00:00:03]} g5 {[%clk 00:02:37]} {[%emt
00:00:06]} 14. Bg3 {[%clk 00:02:46]} {[%emt 00:00:03]} Ne4 {[%clk 00:02:38]}
{[%emt 00:00:01]} 15. Nxc6 {[%clk 00:02:06]} {[%emt 00:00:42]} bxc6 {[%clk
00:02:39]} {[%emt 00:00:01]} 16. Be5 {[%clk 00:02:07]} Be6 {[%clk 00:01:42]}
{[%emt 00:00:59]} 17. Bf3 {[%clk 00:01:59]} {[%emt 00:00:10]} f5 {[%clk
00:01:02]} {[%emt 00:00:41]} 18. Nd4 {[%clk 00:01:36]} {[%emt 00:00:25]} Qd7
{[%clk 00:01:03]} {[%emt 00:00:02]} 19. Bxe4 {[%clk 00:01:12]} {[%emt
00:00:26]} fxe4 {[%clk 00:00:41]} {[%emt 00:00:23]} 20. h3 {[%clk 00:00:56]}
{[%emt 00:00:19]} c5 {[%clk 00:00:40]} {[%emt 00:00:04]} 21. Nb3 {[%clk
00:00:46]} {[%emt 00:00:12]} Rad8 {[%clk 00:00:32]} {[%emt 00:00:09]} 22. Qh5
{[%clk 00:00:43]} {[%emt 00:00:05]} Kh7 {[%clk 00:00:32]} {[%emt 00:00:02]} 23.
Rad1 {[%clk 00:00:44]} {[%emt 00:00:01]} Rf5 {[%clk 00:00:20]} {[%emt
00:00:14]} 24. Bg3 {[%clk 00:00:42]} {[%emt 00:00:04]} Qf7 {[%clk 00:00:14]}
{[%emt 00:00:08]} 25. Qe2 {[%clk 00:00:40]} {[%emt 00:00:04]} d4 {[%clk
00:00:08]} {[%emt 00:00:08]} 26. cxd4 {[%clk 00:00:35]} {[%emt 00:00:08]} Bxb3
{[%clk 00:00:06]} {[%emt 00:00:04]} 27. axb3 {[%clk 00:00:34]} {[%emt
00:00:02]} cxd4 {[%clk 00:00:07]} 28. Qxe4 {[%clk 00:00:35]} {[%emt 00:00:02]}
Re8 {[%clk 00:00:07]} {[%emt 00:00:02]} 29. Qd3 {[%clk 00:00:35]} {[%emt
00:00:02]} Qg6 {[%clk 00:00:06]} {[%emt 00:00:02]} 30. Rfe1 {[%clk 00:00:33]}
{[%emt 00:00:03]} Rff8 {[%clk 00:00:06]} {[%emt 00:00:03]} 31. Rxe8 {[%clk
00:00:26]} {[%emt 00:00:09]} Rxe8 {[%clk 00:00:07]} {[%emt 00:00:01]} 32. Qxa6
{[%clk 00:00:25]} {[%emt 00:00:02]} d3 {[%clk 00:00:06]} {[%emt 00:00:03]} 33.
Qxd3 {[%clk 00:00:23]} {[%emt 00:00:04]} Re1+ {[%clk 00:00:08]} 34. Kh2 {[%clk
00:00:24]} Qxd3 {[%clk 00:00:07]} {[%emt 00:00:04]} 35. Rxd3 {[%clk 00:00:26]}
Re2 {[%clk 00:00:09]} {[%emt 00:00:01]} 36. Rd6 {[%clk 00:00:25]} {[%emt
00:00:02]} Bxf2 {[%clk 00:00:09]} {[%emt 00:00:02]} 37. Bxf2 {[%clk 00:00:24]}
{[%emt 00:00:03]} Rxf2 {[%clk 00:00:10]} 38. b4 {[%clk 00:00:22]} {[%emt
00:00:03]} Rxb2 {[%clk 00:00:11]} {[%emt 00:00:01]} 39. Rd4 {[%clk 00:00:22]}
{[%emt 00:00:01]} Rb3 {[%clk 00:00:11]} {[%emt 00:00:02]} 40. h4 {[%clk
00:00:19]} {[%emt 00:00:05]} gxh4 {[%clk 00:00:10]} {[%emt 00:00:03]} 41. Rxh4
{[%clk 00:00:20]} Kg6 {[%clk 00:00:11]} 42. Rf4 {[%clk 00:00:22]} Kg5 {[%clk
00:00:11]} {[%emt 00:00:03]} 43. g3 {[%clk 00:00:22]} {[%emt 00:00:01]} h5
{[%clk 00:00:11]} {[%emt 00:00:02]} 44. Kh3 {[%clk 00:00:24]} Rc3 {[%clk
00:00:11]} {[%emt 00:00:02]} 45. Rd4 {[%clk 00:00:25]} Rb3 {[%clk 00:00:11]}
{[%emt 00:00:02]} 46. Rd5+ {[%clk 00:00:26]} Kg6 {[%clk 00:00:11]} {[%emt
00:00:02]} 47. b5 Rb4 {[%emt 00:00:01]} 48. Rd6+ {[%clk 00:00:28]} {[%emt
00:00:02]} Kg5 {[%clk 00:00:12]} {[%emt 00:00:01]} 49. b6 {[%clk 00:00:29]}
{[%emt 00:00:01]} h4 {[%clk 00:00:10]} {[%emt 00:00:04]} 50. gxh4+ {[%clk
00:00:26]} {[%emt 00:00:05]} Rxh4+ 51. Kg3 {[%clk 00:00:28]} Rb4 {[%clk
00:00:13]} 1/2-1/2

[Event "MČR v bleskovém šachu družstev 2019"]
[Site "Teplice, Czech Republic"]
[Date "2019.09.14"]
[Round "11.11"]
[White "Svanda, Ondrej"]
[Black "Dolezal, Radoslav"]
[Result "0-1"]
[TimeControl "3 mim. + 2 s"]
[WhiteTitle "FM"]
[BlackTitle "IM"]
[WhiteFideId "359670"]
[BlackFideId "304735"]
[WhiteElo "1924"]
[BlackElo "2359"]

1. e4 {[%clk 00:03:02]} {[%emt 00:00:01]} c6 {[%clk 00:03:02]} {[%emt
00:00:03]} 2. d4 {[%clk 00:03:03]} {[%emt 00:00:01]} d5 {[%clk 00:03:03]} 3.
Nd2 {[%clk 00:03:04]} {[%emt 00:00:01]} dxe4 {[%emt 00:00:02]} 4. Nxe4 Nd7
{[%clk 00:03:03]} {[%emt 00:00:01]} 5. Nf3 {[%clk 00:03:02]} {[%emt 00:00:05]}
Ngf6 {[%clk 00:03:04]} {[%emt 00:00:02]} 6. Nxf6+ {[%clk 00:03:03]} {[%emt
00:00:02]} Nxf6 {[%clk 00:03:04]} {[%emt 00:00:01]} 7. Bd3 {[%clk 00:03:04]}
{[%emt 00:00:01]} Bg4 {[%clk 00:03:05]} {[%emt 00:00:02]} 8. c3 {[%clk
00:03:02]} {[%emt 00:00:04]} e6 {[%clk 00:03:05]} {[%emt 00:00:02]} 9. O-O
{[%clk 00:02:54]} {[%emt 00:00:09]} Bd6 {[%clk 00:03:05]} {[%emt 00:00:01]} 10.
Bg5 {[%clk 00:02:34]} {[%emt 00:00:23]} Qc7 {[%clk 00:03:06]} {[%emt 00:00:01]}
11. h3 {[%clk 00:02:31]} {[%emt 00:00:04]} Bh5 {[%clk 00:03:07]} {[%emt
00:00:02]} 12. c4 {[%clk 00:02:14]} {[%emt 00:00:19]} c5 {[%clk 00:02:44]}
{[%emt 00:00:24]} 13. d5 {[%clk 00:01:44]} {[%emt 00:00:32]} e5 {[%clk
00:02:11]} {[%emt 00:00:35]} 14. Bxf6 {[%clk 00:01:31]} {[%emt 00:00:15]} gxf6
{[%clk 00:02:12]} {[%emt 00:00:01]} 15. Bf5 {[%clk 00:01:30]} {[%emt 00:00:03]}
Bg6 {[%clk 00:02:03]} {[%emt 00:00:11]} 16. Qd3 {[%clk 00:01:25]} {[%emt
00:00:07]} Ke7 {[%clk 00:01:42]} {[%emt 00:00:23]} 17. Nh4 {[%clk 00:01:20]}
{[%emt 00:00:07]} Rag8 {[%clk 00:01:41]} {[%emt 00:00:02]} 18. Qe4 {[%clk
00:01:15]} {[%emt 00:00:07]} Kd8 {[%clk 00:01:42]} {[%emt 00:00:02]} 19. a3
{[%clk 00:01:04]} {[%emt 00:00:14]} Qb6 {[%clk 00:01:33]} {[%emt 00:00:11]} 20.
b4 {[%clk 00:00:46]} {[%emt 00:00:20]} cxb4 {[%clk 00:01:33]} {[%emt 00:00:02]}
21. axb4 {[%clk 00:00:47]} {[%emt 00:00:01]} Bxb4 {[%clk 00:01:33]} {[%emt
00:00:02]} 22. Rfb1 {[%clk 00:00:43]} {[%emt 00:00:06]} a5 {[%clk 00:01:31]}
{[%emt 00:00:04]} 23. d6 {[%clk 00:00:24]} {[%emt 00:00:21]} Re8 {[%clk
00:00:26]} {[%emt 00:01:06]} 24. c5 {[%clk 00:00:19]} {[%emt 00:00:07]} Qb5
{[%clk 00:00:17]} {[%emt 00:00:11]} 25. c6 {[%clk 00:00:14]} {[%emt 00:00:08]}
bxc6 {[%clk 00:00:08]} {[%emt 00:00:11]} 26. Rxb4 {[%clk 00:03:02]} {[%emt
00:00:32]} 0-1

[Event "MČR v bleskovém šachu družstev 2019"]
[Site "Teplice, Czech Republic"]
[Date "2019.09.14"]
[Round "11.12"]
[White "Postupa, Pavel"]
[Black "Skacelik, Petr"]
[Result "1-0"]
[TimeControl "3 mim. + 2 s"]
[WhiteFideId "326410"]
[BlackFideId "307904"]
[WhiteElo "2184"]
[BlackElo "2078"]

1. e4 {[%clk 00:03:03]} {[%emt 00:00:01]} c5 {[%clk 00:03:03]} {[%emt
00:00:01]} 2. Nf3 {[%clk 00:03:04]} {[%emt 00:00:01]} Nc6 {[%clk 00:03:05]} 3.
d4 {[%clk 00:03:02]} {[%emt 00:00:04]} cxd4 {[%clk 00:03:05]} {[%emt 00:00:01]}
4. Nxd4 {[%clk 00:03:03]} {[%emt 00:00:01]} g6 {[%clk 00:03:07]} 5. Nxc6 {[%clk
00:03:01]} {[%emt 00:00:04]} bxc6 {[%clk 00:03:08]} {[%emt 00:00:01]} 6. Bd3
{[%clk 00:03:02]} Bg7 {[%clk 00:03:08]} {[%emt 00:00:01]} 7. O-O {[%clk
00:03:02]} {[%emt 00:00:02]} d6 {[%clk 00:03:09]} {[%emt 00:00:01]} 8. Nd2
{[%clk 00:03:03]} {[%emt 00:00:01]} Nf6 {[%clk 00:03:10]} {[%emt 00:00:02]} 9.
Rb1 {[%clk 00:03:03]} {[%emt 00:00:01]} O-O {[%clk 00:03:08]} {[%emt 00:00:04]}
10. b3 {[%clk 00:03:04]} a5 {[%clk 00:03:06]} {[%emt 00:00:04]} 11. Bb2 {[%clk
00:03:05]} {[%emt 00:00:01]} a4 {[%clk 00:03:02]} {[%emt 00:00:06]} 12. e5
{[%clk 00:03:03]} {[%emt 00:00:04]} Nd7 {[%clk 00:02:46]} {[%emt 00:00:18]} 13.
exd6 {[%clk 00:03:01]} {[%emt 00:00:04]} exd6 {[%clk 00:02:47]} {[%emt
00:00:02]} 14. Bxg7 {[%clk 00:03:01]} {[%emt 00:00:01]} Kxg7 {[%clk 00:02:48]}
{[%emt 00:00:01]} 15. Nc4 {[%clk 00:02:54]} {[%emt 00:00:09]} d5 {[%clk
00:02:30]} {[%emt 00:00:21]} 16. Nd2 {[%clk 00:02:49]} {[%emt 00:00:06]} Ne5
{[%clk 00:02:25]} {[%emt 00:00:07]} 17. Be2 {[%emt 00:00:11]} Bf5 {[%clk
00:02:18]} {[%emt 00:00:07]} 18. Nf3 {[%clk 00:02:40]} {[%emt 00:00:04]} Nxf3+
{[%clk 00:02:13]} {[%emt 00:00:07]} 19. Bxf3 {[%clk 00:02:41]} {[%emt
00:00:01]} Qf6 {[%clk 00:02:09]} {[%emt 00:00:07]} 20. b4 {[%clk 00:02:33]}
{[%emt 00:00:10]} Rab8 {[%clk 00:02:03]} {[%emt 00:00:08]} 21. Qd2 {[%clk
00:02:30]} {[%emt 00:00:05]} Rfe8 {[%clk 00:01:56]} {[%emt 00:00:10]} 22. a3
{[%clk 00:02:28]} {[%emt 00:00:03]} Re7 {[%clk 00:01:48]} {[%emt 00:00:10]} 23.
h3 {[%clk 00:02:19]} {[%emt 00:00:11]} Rbe8 {[%clk 00:01:48]} {[%emt 00:00:02]}
24. b5 {[%clk 00:02:18]} {[%emt 00:00:03]} cxb5 {[%clk 00:01:41]} {[%emt
00:00:09]} 25. Rxb5 {[%clk 00:02:19]} {[%emt 00:00:01]} d4 {[%clk 00:01:37]}
{[%emt 00:00:06]} 26. Rb4 {[%clk 00:02:14]} {[%emt 00:00:06]} Rc8 {[%clk
00:01:34]} {[%emt 00:00:05]} 27. Qxd4 {[%clk 00:02:10]} {[%emt 00:00:07]} Qxd4
{[%clk 00:01:31]} {[%emt 00:00:04]} 28. Rxd4 {[%clk 00:02:10]} {[%emt
00:00:02]} Bxc2 {[%clk 00:01:31]} {[%emt 00:00:02]} 29. Bd1 {[%clk 00:02:05]}
{[%emt 00:00:07]} Bxd1 {[%clk 00:01:28]} {[%emt 00:00:05]} 30. Rfxd1 {[%clk
00:02:06]} {[%emt 00:00:01]} Ra7 {[%clk 00:01:28]} {[%emt 00:00:02]} 31. R1d3
{[%clk 00:01:49]} {[%emt 00:00:18]} Rc2 {[%clk 00:01:28]} {[%emt 00:00:02]} 32.
g4 {[%clk 00:01:48]} {[%emt 00:00:03]} Ra2 {[%clk 00:01:28]} {[%emt 00:00:02]}
33. Kg2 {[%clk 00:01:49]} h6 {[%clk 00:01:27]} {[%emt 00:00:04]} 34. Kg3 {[%clk
00:01:48]} {[%emt 00:00:03]} g5 {[%clk 00:01:28]} 35. Rb4 {[%clk 00:01:46]}
{[%emt 00:00:05]} Rc2 {[%clk 00:01:26]} {[%emt 00:00:04]} 36. Rf3 {[%clk
00:01:39]} {[%emt 00:00:09]} Rd2 {[%clk 00:01:24]} {[%emt 00:00:03]} 37. Rb6
{[%clk 00:01:38]} {[%emt 00:00:03]} Rc2 {[%clk 00:01:19]} {[%emt 00:00:08]} 38.
h4 {[%clk 00:01:31]} {[%emt 00:00:09]} gxh4+ {[%clk 00:01:20]} {[%emt
00:00:02]} 39. Kxh4 {[%clk 00:01:32]} Rcc7 {[%clk 00:01:16]} {[%emt 00:00:06]}
40. Kg3 {[%clk 00:01:32]} {[%emt 00:00:02]} Rc2 {[%clk 00:01:16]} 41. Rd3
{[%clk 00:01:32]} {[%emt 00:00:02]} Rc4 {[%clk 00:01:15]} {[%emt 00:00:04]} 42.
f3 {[%clk 00:01:30]} {[%emt 00:00:03]} Rac7 {[%clk 00:01:14]} {[%emt 00:00:04]}
43. Ra6 {[%clk 00:01:29]} {[%emt 00:00:03]} Rb7 {[%clk 00:01:13]} {[%emt
00:00:03]} 44. Ra8 {[%clk 00:00:57]} {[%emt 00:00:34]} Re7 {[%clk 00:01:09]}
{[%emt 00:00:07]} 45. Rdd8 {[%clk 00:00:50]} {[%emt 00:00:08]} Rb7 {[%clk
00:01:05]} {[%emt 00:00:06]} 46. Rg8+ {[%clk 00:00:50]} {[%emt 00:00:02]} Kf6
{[%clk 00:01:06]} 47. Ra6+ {[%clk 00:00:50]} {[%emt 00:00:02]} Ke7 {[%clk
00:01:07]} {[%emt 00:00:02]} 48. Rga8 {[%clk 00:00:44]} {[%emt 00:00:07]} Rb3
{[%clk 00:01:02]} {[%emt 00:00:07]} 49. Rxa4 {[%clk 00:00:38]} {[%emt
00:00:09]} Rcc3 {[%clk 00:01:04]} 50. Re4+ {[%clk 00:00:38]} {[%emt 00:00:01]}
Kf6 {[%clk 00:01:03]} {[%emt 00:00:03]} 51. Rf4+ {[%emt 00:00:03]} Kg6 52. a4
{[%clk 00:00:38]} Ra3 {[%clk 00:01:02]} {[%emt 00:00:05]} 53. Ra6+ {[%clk
00:00:38]} {[%emt 00:00:01]} Kg7 {[%clk 00:01:03]} {[%emt 00:00:02]} 54. Ra7
{[%clk 00:00:40]} Kg6 {[%clk 00:01:04]} {[%emt 00:00:01]} 55. Raxf7 {[%clk
00:00:39]} {[%emt 00:00:02]} Rxa4 {[%clk 00:01:02]} {[%emt 00:00:04]} 56. Rxa4
{[%clk 00:00:39]} {[%emt 00:00:03]} Kxf7 {[%clk 00:01:03]} {[%emt 00:00:01]} 57.
Ra7+ {[%clk 00:00:39]} Kg6 {[%clk 00:01:04]} 58. Ra4 {[%clk 00:00:39]} {[%emt
00:00:02]} Rb3 {[%clk 00:01:05]} {[%emt 00:00:02]} 59. Kf4 {[%clk 00:00:40]}
Rb5 {[%clk 00:01:05]} {[%emt 00:00:01]} 60. Ra6+ {[%clk 00:00:41]} {[%emt
00:00:01]} Kg7 {[%clk 00:01:07]} 61. Re6 {[%clk 00:00:41]} {[%emt 00:00:02]}
Rb4+ {[%clk 00:01:08]} 62. Re4 {[%clk 00:00:42]} {[%emt 00:00:01]} Rb5 {[%clk
00:01:09]} 63. Re5 {[%clk 00:00:44]} Rb4+ {[%clk 00:01:10]} 64. Kf5 {[%clk
00:00:45]} {[%emt 00:00:03]} Rb8 {[%clk 00:01:11]} 65. f4 {[%clk 00:00:46]}
{[%emt 00:00:01]} Rf8+ {[%clk 00:01:12]} {[%emt 00:00:01]} 66. Ke4 {[%clk
00:00:47]} Ra8 {[%clk 00:01:14]} 67. Re7+ {[%clk 00:00:48]} Kg6 {[%clk
00:01:15]} {[%emt 00:00:01]} 68. f5+ {[%clk 00:00:49]} {[%emt 00:00:01]} Kf6
{[%clk 00:01:16]} 69. Re6+ {[%clk 00:00:51]} {[%emt 00:00:01]} Kg7 {[%clk
00:01:17]} 70. Rg6+ {[%clk 00:00:52]} Kh7 {[%clk 00:01:18]} {[%emt 00:00:01]}
71. Kf4 {[%clk 00:00:51]} {[%emt 00:00:03]} Re8 {[%clk 00:01:19]} {[%emt
00:00:01]} 72. Kg3 {[%clk 00:00:52]} {[%emt 00:00:01]} Re1 {[%clk 00:01:19]}
{[%emt 00:00:02]} 73. Ra6 {[%clk 00:00:52]} {[%emt 00:00:01]} Re3+ {[%clk
00:01:19]} {[%emt 00:00:02]} 74. Kf4 {[%clk 00:00:54]} Re1 {[%clk 00:01:21]} 75.
Ra7+ {[%clk 00:00:54]} {[%emt 00:00:03]} Kg8 {[%clk 00:01:22]} 76. Rb7 {[%clk
00:00:54]} {[%emt 00:00:02]} Kf8 {[%clk 00:01:23]} {[%emt 00:00:01]} 77. f6
{[%clk 00:00:55]} {[%emt 00:00:01]} Kg8 {[%clk 00:01:21]} {[%emt 00:00:03]} 78.
Kf5 {[%clk 00:00:56]} {[%emt 00:00:01]} Rg1 {[%clk 00:01:21]} {[%emt 00:00:02]}
79. Rg7+ {[%clk 00:00:55]} {[%emt 00:00:03]} Kf8 {[%clk 00:01:21]} {[%emt
00:00:02]} 80. Rh7 {[%clk 00:00:56]} {[%emt 00:00:01]} Rh1 {[%clk 00:01:21]}
{[%emt 00:00:02]} 81. Kg6 {[%clk 00:00:57]} {[%emt 00:00:02]} Ke8 {[%clk
00:01:17]} {[%emt 00:00:05]} 82. Rxh6 {[%clk 00:00:58]} {[%emt 00:00:01]} Rg1
{[%clk 00:01:18]} 83. g5 {[%clk 00:00:59]} {[%emt 00:00:01]} 1-0

[Event "MČR v bleskovém šachu družstev 2019"]
[Site "Teplice, Czech Republic"]
[Date "2019.09.14"]
[Round "11.13"]
[White "Bernasek, Jan"]
[Black "Rubes, Jan"]
[Result "1-0"]
[TimeControl "3 mim. + 2 s"]
[WhiteTitle "GM"]
[BlackTitle "FM"]
[WhiteFideId "311995"]
[BlackFideId "338176"]
[WhiteElo "2526"]
[BlackElo "2316"]

1. d4 {[%clk 00:03:03]} d5 {[%clk 00:03:01]} {[%emt 00:00:03]} 2. c4 {[%clk
00:03:04]} e6 {[%clk 00:03:01]} {[%emt 00:00:02]} 3. Nc3 {[%clk 00:03:05]} Nf6
{[%clk 00:03:01]} {[%emt 00:00:02]} 4. cxd5 {[%clk 00:03:06]} Nxd5 {[%clk
00:03:02]} 5. Nf3 {[%clk 00:03:06]} {[%emt 00:00:03]} Nxc3 {[%clk 00:02:58]}
{[%emt 00:00:07]} 6. bxc3 {[%clk 00:03:07]} {[%emt 00:00:01]} c5 {[%clk
00:02:59]} {[%emt 00:00:02]} 7. e3 {[%clk 00:03:04]} {[%emt 00:00:04]} Be7
{[%clk 00:02:55]} {[%emt 00:00:06]} 8. Bd3 {[%clk 00:03:05]} {[%emt 00:00:01]}
O-O {[%clk 00:02:51]} {[%emt 00:00:05]} 9. O-O {[%clk 00:03:06]} {[%emt
00:00:02]} Nd7 {[%clk 00:02:47]} {[%emt 00:00:05]} 10. e4 {[%clk 00:03:06]}
{[%emt 00:00:02]} cxd4 {[%clk 00:02:40]} {[%emt 00:00:10]} 11. cxd4 {[%clk
00:03:07]} {[%emt 00:00:01]} b6 {[%clk 00:02:41]} {[%emt 00:00:01]} 12. Bf4
{[%clk 00:02:59]} {[%emt 00:00:10]} Bb7 {[%clk 00:02:40]} {[%emt 00:00:03]} 13.
Rc1 {[%clk 00:02:58]} {[%emt 00:00:02]} Rc8 {[%clk 00:02:29]} {[%emt 00:00:13]}
14. Qa4 {[%clk 00:02:56]} {[%emt 00:00:04]} Nc5 {[%clk 00:01:56]} {[%emt
00:00:35]} 15. dxc5 {[%clk 00:02:47]} {[%emt 00:00:11]} Qxd3 {[%clk 00:01:58]}
{[%emt 00:00:02]} 16. c6 {[%clk 00:02:42]} {[%emt 00:00:06]} Ba6 {[%clk
00:01:54]} {[%emt 00:00:06]} 17. Rfd1 {[%clk 00:02:29]} {[%emt 00:00:14]} Qb5
{[%clk 00:01:54]} {[%emt 00:00:02]} 18. Qxb5 {[%clk 00:02:12]} {[%emt
00:00:19]} Bxb5 {[%clk 00:01:55]} 19. Nd4 {[%clk 00:01:54]} {[%emt 00:00:20]}
Ba4 {[%clk 00:01:52]} {[%emt 00:00:06]} 20. c7 {[%clk 00:01:29]} {[%emt
00:00:27]} Bc5 {[%clk 00:01:12]} {[%emt 00:00:42]} 21. Nb3 {[%clk 00:01:28]}
{[%emt 00:00:04]} f6 {[%clk 00:01:04]} {[%emt 00:00:10]} 22. Bd6 {[%clk
00:00:55]} {[%emt 00:00:34]} Rfe8 {[%clk 00:00:23]} {[%emt 00:00:43]} 23. Bxc5
{[%clk 00:00:54]} {[%emt 00:00:03]} bxc5 {[%clk 00:00:20]} {[%emt 00:00:04]} 24.
Rxc5 {[%clk 00:00:55]} Kf7 {[%clk 00:00:20]} {[%emt 00:00:03]} 25. Rdc1 {[%clk
00:00:45]} {[%emt 00:00:12]} Bxb3 {[%clk 00:00:16]} {[%emt 00:00:06]} 26. axb3
{[%clk 00:00:46]} Re7 {[%clk 00:00:18]} 27. f4 {[%clk 00:00:45]} {[%emt
00:00:04]} Rd7 {[%clk 00:00:16]} {[%emt 00:00:04]} 28. R1c2 {[%clk 00:00:45]}
{[%emt 00:00:02]} Ke7 {[%clk 00:00:07]} {[%emt 00:00:10]} 29. Kf2 {[%clk
00:00:27]} {[%emt 00:00:20]} Rd4 {[%clk 00:00:09]} 30. Ke3 {[%clk 00:00:25]}
{[%emt 00:00:04]} Rb4 {[%clk 00:00:10]} {[%emt 00:00:01]} 31. R2c3 {[%clk
00:00:26]} Rb7 {[%clk 00:00:09]} {[%emt 00:00:03]} 32. f5 {[%clk 00:00:23]}
{[%emt 00:00:04]} exf5 {[%clk 00:00:10]} {[%emt 00:00:01]} 33. exf5 {[%clk
00:00:24]} {[%emt 00:00:01]} Kd7 {[%clk 00:00:12]} 34. Kd4 {[%clk 00:00:16]}
{[%emt 00:00:10]} Rbxc7 {[%clk 00:00:11]} {[%emt 00:00:02]} 35. Rxc7+ {[%clk
00:00:10]} {[%emt 00:00:08]} Rxc7 {[%clk 00:00:13]} {[%emt 00:00:01]} 36. Rxc7+
Kxc7 {[%clk 00:00:14]} 37. Kd5 {[%clk 00:00:13]} Kd7 {[%clk 00:00:15]} {[%emt
00:00:01]} 38. g4 {[%clk 00:00:14]} Ke7 {[%clk 00:00:04]} {[%emt 00:00:14]} 39.
Kc6 {[%clk 00:00:14]} {[%emt 00:00:02]} g6 {[%clk 00:00:04]} {[%emt 00:00:03]}
40. b4 {[%clk 00:00:14]} {[%emt 00:00:01]} gxf5 {[%clk 00:00:04]} {[%emt
00:00:01]} 41. gxf5 {[%clk 00:00:15]} {[%emt 00:00:01]} h5 {[%clk 00:00:05]} 42.
h4 {[%clk 00:00:16]} {[%emt 00:00:01]} 1-0